fUST/lending_fUST_20240823
["ID","MTS","AMOUNT","RATE_DAILY","PERIOD"]
[335653424,1724401825968,-500.0,0.00045205,120]
[335653425,1724401825993,-500.0,0.00045205,120]
[335653426,1724401826017,-500.0,0.00045205,120]
[335653427,1724401826268,-500.0,0.00045205,120]
[335653428,1724401826294,-500.0,0.00045205,120]
[335653429,1724401826321,-500.0,0.00045205,120]
[335653430,1724401826347,-500.0,0.00045205,120]
[335653431,1724401826374,-500.0,0.00045205,120]
[335653432,1724401826398,-2090.5203537,0.00045205,120]
[335653433,1724401826424,-500.0,0.00045307,30]
[335653434,1724401826450,-13549.0,0.00045479,120]
[335653435,1724401826477,-703.0,0.00045678,30]
[335653436,1724401826504,-13549.0,0.00045835,120]
[335653437,1724401826529,-151.0,0.00045836,120]
[335653438,1724401826555,-158.83409035,0.00045897,58]
[335653439,1724401826581,-1000.0,0.00045999,120]
[335653440,1724401826606,-163.13837097,0.00046,120]
[335653441,1724401826632,-2000.0,0.00046,120]
[335653442,1724401826657,-10099.99999906,0.00046,120]
[335653443,1724401826683,-357.0,0.00046,30]
[335653444,1724401826712,-250.0,0.00046,30]
[335653445,1724401826737,-13549.0,0.00046191,120]
[335653446,1724401826772,-1348.0,0.00046319,64]
[335653447,1724401826798,-817.0,0.000465,120]
[335653448,1724401826822,-3281.56251349,0.000465,120]
[335653449,1724401826849,-13549.19172317,0.00046547,120]
[335653450,1724401826873,-171.1,0.00046575,60]
[335653451,1724401826898,-152.0,0.00046575,60]
[335653452,1724401827995,834064.56673552,0.00046575,30]
[335653453,1724401829416,101.70399999,0.00014519,2]
[335653454,1724401829438,191.07042191,0.00014519,2]
[335653455,1724401829470,153.40825465,0.00014519,2]
[335653456,1724401829491,487.80879907,0.00014519,2]
[335653514,1724401832100,-1004.25000015,0.00016238,2]
[335653515,1724401832121,-995.74999985,0.00016238,2]
[335653516,1724401832132,-300.0,0.00016327,2]
[335653517,1724401832143,-11701.431081,0.00016328,2]
[335653518,1724401835554,254.6120006,0.00015362,2]
[335653519,1724401835902,237.57920033,0.00014519,2]
[335653550,1724401837821,-1908.44399699,0.00014519,2]
[335653551,1724401837831,-36876.21138924,0.00016328,2]
[335653552,1724401837841,-1464.23764449,0.00016338,2]
[335653553,1724401837851,-40000.0,0.00016338,2]
[335653554,1724401837861,-47600.813607,0.00016341,2]
[335653555,1724401837871,-95201.6272139,0.0001638,2]
[335653556,1724401837881,-95201.6272139,0.0001639,2]
[335653557,1724401837893,-110502.0841538,0.000164,2]
[335653558,1724401837903,-150.112233,0.000164,2]
[335653559,1724401837912,-150.112233,0.000164,2]
[335653560,1724401837923,-150.112233,0.000164,2]
[335653561,1724401837932,-150.112233,0.000164,2]
[335653562,1724401837942,-150.112233,0.000164,2]
[335653563,1724401837951,-198.83813635,0.00016437,2]
[335653564,1724401837961,-500.0,0.00016437,2]
[335653565,1724401837970,-238.41522815,0.00016437,2]
[335653566,1724401837980,-500.0,0.00016437,2]
[335653567,1724401837989,-500.0,0.00016437,2]
[335653568,1724401837999,-500.0,0.00016437,2]
[335653569,1724401838008,-500.0,0.00016437,2]
[335653570,1724401838017,-500.0,0.00016437,2]
[335653571,1724401838027,-500.0,0.00016437,2]
[335653572,1724401838037,-500.0,0.00016437,2]
[335653573,1724401838047,-500.0,0.00016437,2]
[335653574,1724401838056,-500.0,0.00016437,2]
[335653575,1724401838065,-500.0,0.00016437,2]
[335653576,1724401838075,-500.0,0.00016437,2]
[335653577,1724401838084,-500.0,0.00016437,2]
[335653578,1724401838093,-500.0,0.00016437,2]
[335653579,1724401838103,-500.0,0.00016437,2]
[335653580,1724401838112,-500.0,0.00016437,2]
[335653581,1724401838122,-500.0,0.00016437,2]
[335653582,1724401838132,-500.0,0.00016437,2]
[335653583,1724401838141,-492.96540687,0.00016437,2]
[335653584,1724401838150,-500.0,0.00016437,2]
[335653585,1724401838160,-477.77318724,0.00016437,2]
[335653586,1724401838170,-500.0,0.00016437,2]
[335653587,1724401838179,-166.8906597,0.00016437,2]
[335653588,1724401838188,-500.0,0.00016437,2]
[335653589,1724401838198,-500.0,0.00016437,2]
[335653590,1724401838208,-318.4137458,0.00016437,2]
[335653591,1724401838217,-500.0,0.00016437,2]
[335653592,1724401838226,-500.0,0.00016437,2]
[335653593,1724401838236,-500.0,0.00016437,2]
[335653594,1724401838245,-529.8509849,0.00016438,2]
[335653595,1724401838257,-456.26460855,0.00016438,2]
[335653596,1724401838269,-500.0,0.00016438,2]
[335653597,1724401838279,-206.7542384,0.00016438,2]
[335653598,1724401838289,-500.0,0.00016438,2]
[335653599,1724401838299,-500.0,0.00016438,2]
[335653600,1724401838310,-500.0,0.00016438,2]
[335653601,1724401838321,-500.0,0.00016438,2]
[335653602,1724401838331,-500.0,0.00016438,2]
[335653603,1724401838342,-505.53753002,0.00016438,2]
[335653604,1724401838353,-500.0,0.00016438,2]
[335653605,1724401838365,-500.0,0.00016438,2]
[335653606,1724401838375,-500.0,0.00016438,2]
[335653607,1724401838385,-500.0,0.00016438,2]
[335653608,1724401838400,-500.0,0.00016438,2]
[335653609,1724401838411,-500.0,0.00016438,2]
[335653610,1724401838423,-500.0,0.00016438,2]
[335653611,1724401838433,-500.0,0.00016438,2]
[335653612,1724401838446,-500.0,0.00016438,2]
[335653613,1724401838458,-526.83220527,0.00016438,2]
[335653614,1724401838468,-533.44618054,0.00016438,2]
[335653615,1724401838478,-500.0,0.00016438,2]
[335653616,1724401838489,-500.0,0.00016438,2]
[335653617,1724401838498,-506.91422126,0.00016438,2]
[335653618,1724401838508,-500.0,0.00016438,2]
[335653619,1724401838518,-507.52524583,0.00016438,2]
[335653620,1724401838528,-500.0,0.00016438,2]
[335653621,1724401838539,-500.0,0.00016438,2]
[335653622,1724401838549,-500.0,0.00016438,2]
[335653623,1724401838560,-500.0,0.00016438,2]
[335653624,1724401838570,-514.37785923,0.00016438,2]
[335653625,1724401838582,-816.14,0.00016438,2]
[335653626,1724401838592,-500.0,0.00016438,2]
[335653627,1724401838602,-500.0,0.00016438,2]
[335653628,1724401838614,-500.0,0.00016438,2]
[335653629,1724401838624,-506.2396318,0.00016438,2]
[335653630,1724401838634,-500.0,0.00016438,2]
[335653631,1724401838644,-500.0,0.00016438,2]
[335653632,1724401838654,-500.0,0.00016438,2]
[335653633,1724401838664,-641.74,0.00016438,2]
[335653634,1724401838674,-500.0,0.00016438,2]
[335653635,1724401838685,-500.0,0.00016438,2]
[335653636,1724401838695,-640.2,0.00016438,2]
[335653637,1724401838706,-500.0,0.00016438,2]
[335653638,1724401838716,-556.52,0.00016438,2]
[335653639,1724401838726,-500.0,0.00016438,2]
[335653640,1724401838736,-500.0,0.00016438,2]
[335653641,1724401838746,-500.0,0.00016438,2]
[335653642,1724401838755,-150.0,0.00016438,2]
[335653643,1724401838765,-500.0,0.00016438,2]
[335653644,1724401838776,-864.77,0.00016438,2]
[335653645,1724401838787,-500.0,0.00016438,2]
[335653646,1724401838797,-500.0,0.00016438,2]
[335653647,1724401838808,-500.0,0.00016438,2]
[335653648,1724401838819,-500.0,0.00016438,2]
[335653649,1724401838829,-500.0,0.00016438,2]
[335653650,1724401839099,-500.0,0.00016438,2]
[335653651,1724401839109,-159.76330745,0.00016438,2]
[335653652,1724401839119,-500.0,0.00016438,2]
[335653653,1724401839129,-500.0,0.00016438,2]
[335653654,1724401839138,-500.0,0.00016438,2]
[335653655,1724401839147,-500.0,0.00016438,2]
[335653656,1724401839157,-511.8373745,0.00016438,2]
[335653657,1724401839166,-500.0,0.00016438,2]
[335653658,1724401839176,-307.06820388,0.00016438,2]
[335653659,1724401839186,-500.0,0.00016438,2]
[335653660,1724401839209,-500.0,0.00016438,2]
[335653661,1724401839219,-500.0,0.00016438,2]
[335653662,1724401839229,-425.1389994,0.00016438,2]
[335653663,1724401839239,-500.0,0.00016438,2]
[335653664,1724401839252,-500.16925323,0.00016438,2]
[335653665,1724401839263,-500.0,0.00016438,2]
[335653666,1724401839273,-500.0,0.00016438,2]
[335653667,1724401839284,-200.61,0.00016438,2]
[335653668,1724401839294,-500.0,0.00016438,2]
[335653669,1724401839304,-500.0,0.00016438,2]
[335653670,1724401839315,-421.09128022,0.00016438,2]
[335653671,1724401839326,-500.0,0.00016438,2]
[335653672,1724401839338,-500.0,0.00016438,2]
[335653673,1724401839348,-500.0,0.00016438,2]
[335653674,1724401839358,-500.0,0.00016438,2]
[335653675,1724401839375,-500.0,0.00016438,2]
[335653676,1724401839386,-500.0,0.00016438,2]
[335653677,1724401839396,-500.0,0.00016438,2]
[335653678,1724401839407,-500.0,0.00016438,2]
[335653679,1724401839417,-500.0,0.00016438,2]
[335653680,1724401839427,-500.0,0.00016438,2]
[335653681,1724401839439,-500.0,0.00016438,2]
[335653682,1724401839449,-500.0,0.00016438,2]
[335653683,1724401839461,-500.0,0.00016438,2]
[335653684,1724401839472,-500.0,0.00016438,2]
[335653685,1724401839484,-500.0,0.00016438,2]
[335653686,1724401839494,-559.12,0.00016438,2]
[335653687,1724401839505,-500.0,0.00016438,2]
[335653688,1724401839514,-500.0,0.00016438,2]
[335653689,1724401839524,-500.0,0.00016438,2]
[335653690,1724401839535,-500.0,0.00016438,2]
[335653691,1724401839545,-500.0,0.00016438,2]
[335653693,1724401839555,-500.0,0.00016438,2]
[335653694,1724401839564,-500.0,0.00016438,2]
[335653696,1724401839575,-500.0,0.00016438,2]
[335653698,1724401839585,-500.0,0.00016438,2]
[335653699,1724401839595,-500.0,0.00016438,2]
[335653700,1724401839605,-500.0,0.00016438,2]
[335653702,1724401839614,-500.0,0.00016438,2]
[335653703,1724401839624,-500.0,0.00016438,2]
[335653704,1724401839635,-500.0,0.00016438,2]
[335653705,1724401839646,-500.0,0.00016438,2]
[335653706,1724401839657,-500.0,0.00016438,2]
[335653707,1724401839669,-500.0,0.00016438,2]
[335653708,1724401839681,-500.0,0.00016438,2]
[335653709,1724401839692,-505.0683226,0.00016438,2]
[335653710,1724401839701,-500.0,0.00016438,2]
[335653711,1724401839711,-1019.09,0.00016438,2]
[335653712,1724401839723,-504.96981069,0.00016438,2]
[335653713,1724401839732,-681.34,0.00016438,2]
[335653714,1724401839742,-500.0,0.00016438,2]
[335653715,1724401839752,-500.0,0.00016438,2]
[335653716,1724401839762,-795.64,0.00016438,2]
[335653717,1724401839771,-500.0,0.00016438,2]
[335653718,1724401839780,-500.0,0.00016438,2]
[335653719,1724401839790,-467.94366586,0.00016438,2]
[335653720,1724401839800,-504.72853494,0.00016438,2]
[335653721,1724401839809,-500.0,0.00016438,2]
[335653722,1724401839819,-500.0,0.00016438,2]
[335653723,1724401839829,-648.25,0.00016438,2]
[335653724,1724401839838,-500.0,0.00016438,2]
[335653725,1724401839848,-500.0,0.00016438,2]
[335653726,1724401839858,-500.0,0.00016438,2]
[335653727,1724401839868,-500.0,0.00016438,2]
[335653728,1724401839878,-154.76012181,0.00016438,2]
[335653729,1724401839889,-500.0,0.00016438,2]
[335653730,1724401839899,-673.98,0.00016438,2]
[335653731,1724401839909,-500.0,0.00016438,2]
[335653732,1724401839919,-500.0,0.00016438,2]
[335653733,1724401839930,-500.0,0.00016438,2]
[335653735,1724401839941,-500.0,0.00016438,2]
[335653736,1724401839951,-500.0,0.00016438,2]
[335653737,1724401839960,-500.0,0.00016438,2]
[335653738,1724401839970,-500.0,0.00016438,2]
[335653739,1724401839980,-500.0,0.00016438,2]
[335653740,1724401839990,-500.0,0.00016438,2]
[335653741,1724401840000,-500.0,0.00016438,2]
[335653742,1724401840010,-1004.01,0.00016438,2]
[335653743,1724401840021,-332.70948275,0.00016438,2]
[335653744,1724401840031,-500.0,0.00016438,2]
[335653745,1724401840041,-522.75,0.00016438,2]
[335653746,1724401840051,-500.0,0.00016438,2]
[335653747,1724401840061,-500.0,0.00016438,2]
[335653748,1724401840072,-500.0,0.00016438,2]
[335653749,1724401840082,-578.1,0.00016438,2]
[335653750,1724401840092,-508.07,0.00016438,2]
[335653751,1724401840101,-500.0,0.00016438,2]
[335653752,1724401840111,-500.0,0.00016438,2]
[335653753,1724401840121,-500.0,0.00016438,2]
[335653754,1724401840131,-343.11003911,0.00016438,2]
[335653755,1724401840141,-500.0,0.00016438,2]
[335653756,1724401840151,-500.0,0.00016438,2]
[335653757,1724401840162,-500.0,0.00016438,2]
[335653758,1724401840172,-500.0,0.00016438,2]
[335653759,1724401840183,-500.0,0.00016438,2]
[335653760,1724401840193,-616.34,0.00016438,2]
[335653761,1724401840205,-500.0,0.00016438,2]
[335653762,1724401840214,-500.0,0.00016438,2]
[335653763,1724401840224,-500.0,0.00016438,2]
[335653765,1724401840236,-500.0,0.00016438,2]
[335653767,1724401840246,-500.0,0.00016438,2]
[335653769,1724401840258,-500.0,0.00016438,2]
[335653771,1724401840269,-500.0,0.00016438,2]
[335653772,1724401840279,-500.0,0.00016438,2]
[335653773,1724401840290,-500.0,0.00016438,2]
[335653774,1724401840302,-500.0,0.00016438,2]
[335653775,1724401840313,-500.0,0.00016438,2]
[335653776,1724401840324,-768.2,0.00016438,2]
[335653777,1724401840335,-449.26554238,0.00016438,2]
[335653778,1724401840346,-500.0,0.00016438,2]
[335653779,1724401840357,-500.45729683,0.00016438,2]
[335653780,1724401840371,-691.89,0.00016438,2]
[335653781,1724401840382,-603.94,0.00016438,2]
[335653782,1724401840392,-500.0,0.00016438,2]
[335653783,1724401840403,-953.68,0.00016438,2]
[335653784,1724401840415,-553.72,0.00016438,2]
[335653785,1724401840426,-500.0,0.00016438,2]
[335653786,1724401840437,-500.0,0.00016438,2]
[335653787,1724401840449,-886.06,0.00016438,2]
[335653788,1724401840459,-536.55,0.00016438,2]
[335653789,1724401840468,-500.0,0.00016438,2]
[335653790,1724401840478,-500.0,0.00016438,2]
[335653791,1724401840489,-500.0,0.00016438,2]
[335653792,1724401840501,-500.0,0.00016438,2]
[335653793,1724401840510,-500.0,0.00016438,2]
[335653794,1724401840521,-500.0,0.00016438,2]
[335653795,1724401840531,-500.0,0.00016438,2]
[335653796,1724401840541,-500.0,0.00016438,2]
[335653797,1724401840552,-500.0,0.00016438,2]
[335653798,1724401840564,-500.0,0.00016438,2]
[335653799,1724401840575,-500.0,0.00016438,2]
[335653800,1724401840587,-500.0,0.00016438,2]
[335653801,1724401840598,-500.0,0.00016438,2]
[335653802,1724401840607,-500.0,0.00016438,2]
[335653803,1724401840621,-500.0,0.00016438,2]
[335653804,1724401840631,-848.61,0.00016438,2]
[335653805,1724401840641,-500.0,0.00016438,2]
[335653806,1724401840651,-500.0,0.00016438,2]
[335653807,1724401840663,-500.0,0.00016438,2]
[335653808,1724401840675,-500.0,0.00016438,2]
[335653809,1724401840688,-922.22,0.00016438,2]
[335653810,1724401840697,-500.0,0.00016438,2]
[335653811,1724401840715,-500.0,0.00016438,2]
[335653812,1724401840726,-500.74838493,0.00016438,2]
[335653813,1724401840737,-500.0,0.00016438,2]
[335653814,1724401840747,-500.0,0.00016438,2]
[335653815,1724401840758,-757.31,0.00016438,2]
[335653816,1724401840768,-500.0,0.00016438,2]
[335653817,1724401840781,-500.0,0.00016438,2]
[335653818,1724401840791,-491.31566962,0.00016438,2]
[335653819,1724401840802,-500.0,0.00016438,2]
[335653820,1724401840814,-500.0,0.00016438,2]
[335653821,1724401840823,-798.95,0.00016438,2]
[335653822,1724401840832,-500.0,0.00016438,2]
[335653823,1724401840842,-784.63,0.00016438,2]
[335653824,1724401840852,-502.63246932,0.00016438,2]
[335653825,1724401840862,-500.0,0.00016438,2]
[335653826,1724401840871,-568.19,0.00016438,2]
[335653827,1724401840881,-500.0,0.00016438,2]
[335653828,1724401840891,-500.0,0.00016438,2]
[335653829,1724401840901,-500.0,0.00016438,2]
[335653830,1724401840911,-500.0,0.00016438,2]
[335653831,1724401840921,-500.0,0.00016438,2]
[335653832,1724401840931,-500.0,0.00016438,2]
[335653833,1724401840941,-591.23,0.00016438,2]
[335653834,1724401840950,-683.01,0.00016438,2]
[335653835,1724401840962,-451.33411107,0.00016438,2]
[335653836,1724401840971,-1125.2,0.00016438,2]
[335653837,1724401840981,-583.33,0.00016438,2]
[335653838,1724401840990,-927.9,0.00016438,2]
[335653839,1724401840999,-500.0,0.00016438,2]
[335653840,1724401841009,-500.0,0.00016438,2]
[335653841,1724401841018,-500.0,0.00016438,2]
[335653842,1724401841029,-500.0,0.00016438,2]
[335653843,1724401841039,-543.42,0.00016438,2]
[335653844,1724401841049,-1048.23,0.00016438,2]
[335653845,1724401841058,-715.53,0.00016438,2]
[335653846,1724401841067,-500.0,0.00016438,2]
[335653847,1724401841077,-635.89,0.00016438,2]
[335653848,1724401841086,-626.9,0.00016438,2]
[335653849,1724401841096,-599.92979975,0.00016438,2]
[335653850,1724401841105,-500.0,0.00016438,2]
[335653851,1724401841114,-500.0,0.00016438,2]
[335653852,1724401841124,-500.0,0.00016438,2]
[335653853,1724401841134,-500.0,0.00016438,2]
[335653854,1724401841143,-500.0,0.00016438,2]
[335653855,1724401841153,-771.88,0.00016438,2]
[335653856,1724401841162,-500.0,0.00016438,2]
[335653857,1724401841171,-500.0,0.00016438,2]
[335653858,1724401841181,-500.0,0.00016438,2]
[335653859,1724401841191,-500.0,0.00016438,2]
[335653860,1724401841206,-500.0,0.00016438,2]
[335653861,1724401841216,-620.45,0.00016438,2]
[335653862,1724401841225,-500.0,0.00016438,2]
[335653863,1724401841235,-835.97,0.00016438,2]
[335653864,1724401841245,-686.91,0.00016438,2]
[335653865,1724401841254,-3220.66,0.00016438,2]
[335653866,1724401841264,-500.0,0.00016438,2]
[335653867,1724401841273,-500.0,0.00016438,2]
[335653868,1724401841282,-500.0,0.00016438,2]
[335653869,1724401841292,-500.0,0.00016438,2]
[335653870,1724401841302,-500.0,0.00016438,2]
[335653871,1724401841312,-500.0,0.00016438,2]
[335653872,1724401841321,-500.0,0.00016438,2]
[335653873,1724401841334,-500.0,0.00016438,2]
[335653874,1724401841343,-500.0,0.00016438,2]
[335653875,1724401841352,-500.0,0.00016438,2]
[335653876,1724401841364,-2160.1,0.00016438,2]
[335653877,1724401841374,-500.0,0.00016438,2]
[335653878,1724401841385,-500.0,0.00016438,2]
[335653879,1724401841395,-500.0,0.00016438,2]
[335653880,1724401841405,-639.8,0.00016438,2]
[335653881,1724401841415,-500.0,0.00016438,2]
[335653882,1724401841425,-503.04034733,0.00016438,2]
[335653883,1724401841435,-500.0,0.00016438,2]
[335653884,1724401841446,-500.0,0.00016438,2]
[335653885,1724401841456,-500.0,0.00016438,2]
[335653886,1724401841466,-500.0,0.00016438,2]
[335653887,1724401841475,-500.0,0.00016438,2]
[335653888,1724401841485,-500.0,0.00016438,2]
[335653889,1724401841495,-500.0,0.00016438,2]
[335653890,1724401841506,-617.18,0.00016438,2]
[335653891,1724401841516,-500.0,0.00016438,2]
[335653892,1724401841527,-500.0,0.00016438,2]
[335653893,1724401841537,-2016.03,0.00016438,2]
[335653894,1724401841546,-500.0,0.00016438,2]
[335653895,1724401841556,-500.0,0.00016438,2]
[335653896,1724401841565,-1035.13,0.00016438,2]
[335653897,1724401841575,-500.0,0.00016438,2]
[335653898,1724401841584,-500.0,0.00016438,2]
[335653899,1724401841595,-500.0,0.00016438,2]
[335653900,1724401841605,-500.0,0.00016438,2]
[335653901,1724401841614,-500.0,0.00016438,2]
[335653902,1724401841624,-500.0,0.00016438,2]
[335653903,1724401841633,-500.0,0.00016438,2]
[335653904,1724401841643,-500.0,0.00016438,2]
[335653905,1724401841653,-500.0,0.00016438,2]
[335653906,1724401841663,-828.85,0.00016438,2]
[335653907,1724401841673,-776.95,0.00016438,2]
[335653908,1724401841682,-823.91,0.00016438,2]
[335653909,1724401841692,-500.0,0.00016438,2]
[335653910,1724401841702,-500.0,0.00016438,2]
[335653911,1724401841712,-500.0,0.00016438,2]
[335653912,1724401841722,-542.16,0.00016438,2]
[335653913,1724401841732,-500.0,0.00016438,2]
[335653914,1724401841741,-500.0,0.00016438,2]
[335653915,1724401841751,-500.0,0.00016438,2]
[335653916,1724401841761,-500.0,0.00016438,2]
[335653917,1724401841770,-500.0,0.00016438,2]
[335653918,1724401841780,-500.0,0.00016438,2]
[335653919,1724401841790,-500.0,0.00016438,2]
[335653920,1724401841800,-500.0,0.00016438,2]
[335653921,1724401841809,-500.0,0.00016438,2]
[335653922,1724401841819,-500.0,0.00016438,2]
[335653923,1724401841829,-562.97,0.00016438,2]
[335653924,1724401841838,-500.0,0.00016438,2]
[335653925,1724401841848,-500.0,0.00016438,2]
[335653926,1724401841858,-500.0,0.00016438,2]
[335653927,1724401841868,-500.0,0.00016438,2]
[335653928,1724401841878,-500.0,0.00016438,2]
[335653929,1724401841888,-500.0,0.00016438,2]
[335653930,1724401841899,-500.0,0.00016438,2]
[335653931,1724401841909,-500.0,0.00016438,2]
[335653932,1724401841919,-500.0,0.00016438,2]
[335653933,1724401841929,-500.0,0.00016438,2]
[335653934,1724401841942,-500.0,0.00016438,2]
[335653935,1724401841953,-508.30643734,0.00016438,2]
[335653936,1724401841963,-2304.76,0.00016438,2]
[335653937,1724401841973,-500.0,0.00016438,2]
[335653938,1724401841984,-579.44,0.00016438,2]
[335653939,1724401841995,-514.7692411,0.00016438,2]
[335653940,1724401842005,-500.0,0.00016438,2]
[335653941,1724401842014,-500.0,0.00016438,2]
[335653942,1724401842024,-569.9,0.00016438,2]
[335653943,1724401842035,-500.0,0.00016438,2]
[335653944,1724401842046,-895.25,0.00016438,2]
[335653945,1724401842057,-500.0,0.00016438,2]
[335653946,1724401842068,-500.0,0.00016438,2]
[335653947,1724401842079,-500.0,0.00016438,2]
[335653948,1724401842089,-500.0,0.00016438,2]
[335653949,1724401842100,-500.0,0.00016438,2]
[335653950,1724401842111,-500.0,0.00016438,2]
[335653951,1724401842121,-500.0,0.00016438,2]
[335653952,1724401842131,-500.0,0.00016438,2]
[335653953,1724401842142,-500.0,0.00016438,2]
[335653954,1724401842151,-500.0,0.00016438,2]
[335653955,1724401842162,-500.24498535,0.00016438,2]
[335653956,1724401842173,-500.0,0.00016438,2]
[335653957,1724401842183,-500.0,0.00016438,2]
[335653958,1724401842194,-1503.89,0.00016438,2]
[335653959,1724401842204,-500.0,0.00016438,2]
[335653960,1724401842214,-500.0,0.00016438,2]
[335653961,1724401842224,-500.0,0.00016438,2]
[335653963,1724401842234,-500.0,0.00016438,2]
[335653965,1724401842243,-500.0,0.00016438,2]
[335653967,1724401842253,-500.0,0.00016438,2]
[335653969,1724401842263,-500.0,0.00016438,2]
[335653971,1724401842273,-500.0,0.00016438,2]
[335653973,1724401842284,-500.0,0.00016438,2]
[335653974,1724401842294,-500.0,0.00016438,2]
[335653975,1724401842304,-500.0,0.00016438,2]
[335653976,1724401842314,-1779.71,0.00016438,2]
[335653977,1724401842324,-500.0,0.00016438,2]
[335653979,1724401842334,-500.0,0.00016438,2]
[335653981,1724401842343,-327.69310841,0.00016438,2]
[335653983,1724401842353,-500.0,0.00016438,2]
[335653985,1724401842364,-500.0,0.00016438,2]
[335653987,1724401842376,-500.0,0.00016438,2]
[335653989,1724401842386,-528.33274522,0.00016438,2]
[335653991,1724401842395,-500.0,0.00016438,2]
[335653993,1724401842406,-535.75,0.00016438,2]
[335653996,1724401842415,-765.71,0.00016438,2]
[335653998,1724401842425,-500.0,0.00016438,2]
[335654000,1724401842434,-500.0,0.00016438,2]
[335654002,1724401842451,-1095.81,0.00016438,2]
[335654004,1724401842461,-500.0,0.00016438,2]
[335654006,1724401842471,-500.0,0.00016438,2]
[335654008,1724401842481,-960.17,0.00016438,2]
[335654010,1724401842491,-500.0,0.00016438,2]
[335654012,1724401842500,-500.0,0.00016438,2]
[335654014,1724401842510,-500.0,0.00016438,2]
[335654016,1724401842519,-500.0,0.00016438,2]
[335654019,1724401842529,-500.0,0.00016438,2]
[335654022,1724401842538,-500.0,0.00016438,2]
[335654026,1724401842548,-500.0,0.00016438,2]
[335654028,1724401842561,-710.12,0.00016438,2]
[335654031,1724401842570,-500.0,0.00016438,2]
[335654034,1724401842580,-500.0,0.00016438,2]
[335654035,1724401842589,-500.0,0.00016438,2]
[335654036,1724401842598,-500.0,0.00016438,2]
[335654039,1724401842608,-500.0,0.00016438,2]
[335654041,1724401842618,-500.0,0.00016438,2]
[335654042,1724401842628,-500.0,0.00016438,2]
[335654043,1724401842639,-2428.32,0.00016438,2]
[335654044,1724401842649,-500.0,0.00016438,2]
[335654045,1724401842659,-500.0,0.00016438,2]
[335654046,1724401842669,-500.0,0.00016438,2]
[335654047,1724401842679,-500.0,0.00016438,2]
[335654048,1724401842691,-500.0,0.00016438,2]
[335654049,1724401842701,-500.0,0.00016438,2]
[335654050,1724401842711,-500.0,0.00016438,2]
[335654051,1724401842720,-500.0,0.00016438,2]
[335654052,1724401842731,-500.0,0.00016438,2]
[335654053,1724401842742,-500.0,0.00016438,2]
[335654054,1724401842752,-1154.74,0.00016438,2]
[335654055,1724401842762,-1180.35,0.00016438,2]
[335654056,1724401842773,-508.61469337,0.00016438,2]
[335654057,1724401842783,-500.0,0.00016438,2]
[335654058,1724401842794,-882.72,0.00016438,2]
[335654059,1724401842804,-887.26,0.00016438,2]
[335654060,1724401842814,-367.99810253,0.00016438,2]